[Event "Titled Tuesday Blitz April 18 Late 2023"]
[White "Janaszak, Dawid"]
[Black "Yeritsyan, Hayk"]
[WhiteFideId "1119206"]
[BlackFideId "13307320"]
[WhiteElo "2220"]
[BlackElo "2431"]
[Result "1/2-1/2"]
[Round "11"]
[TimeControl "180+2"]
[Date "2023.04.18"]
[WhiteClock "0:00:06"]
[BlackClock "0:00:04"]

1. e4 {[%clk 0:03:00]}  c6 {[%clk 0:02:52]} 2. d4 {[%clk 0:03:00]}  d5 {[%clk 0:02:53]} 3. exd5 {[%clk 0:03:01]}  cxd5 {[%clk 0:02:53]} 4. Bd3 {[%clk 0:03:01]}  Nf6 {[%clk 0:02:53]} 5. c3 {[%clk 0:03:01]}  Bg4 {[%clk 0:02:53]} 6. Qb3 {[%clk 0:03:01]}  Qc7 {[%clk 0:02:54]} 7. Ne2 {[%clk 0:02:56]}  Bxe2 {[%clk 0:02:46]} 8. Bxe2 {[%clk 0:02:56]}  e6 {[%clk 0:02:46]} 9. O-O {[%clk 0:02:53]}  Bd6 {[%clk 0:02:46]} 10. h3 {[%clk 0:02:50]}  Nc6 {[%clk 0:02:45]} 11. Nd2 {[%clk 0:02:50]}  Bh2+ {[%clk 0:02:40]} 12. Kh1 {[%clk 0:02:50]}  Bf4 {[%clk 0:02:41]} 13. Nf3 {[%clk 0:02:48]}  Bxc1 {[%clk 0:02:41]} 14. Raxc1 {[%clk 0:02:49]}  O-O {[%clk 0:02:41]} 15. Bd3 {[%clk 0:02:47]}  a6 {[%clk 0:02:37]} 16. Qc2 {[%clk 0:02:47]}  Rfc8 {[%clk 0:02:34]} 17. Qe2 {[%clk 0:02:43]}  b5 {[%clk 0:02:34]} 18. Ne5 {[%clk 0:02:34]}  Nxe5 {[%clk 0:02:32]} 19. dxe5 {[%clk 0:02:35]}  Nd7 {[%clk 0:02:32]} 20. f4 {[%clk 0:02:35]}  Rab8 {[%clk 0:02:27]} 21. a3 {[%clk 0:02:34]}  Nc5 {[%clk 0:02:26]} 22. Bc2 {[%clk 0:02:31]}  g6 {[%clk 0:02:23]} 23. g4 {[%clk 0:02:30]}  Na4 {[%clk 0:02:17]} 24. f5 {[%clk 0:02:29]}  Nxb2 {[%clk 0:02:11]} 25. fxe6 {[%clk 0:02:19]}  fxe6 {[%clk 0:02:12]} 26. Bxg6 {[%clk 0:01:57]}  hxg6 {[%clk 0:01:59]} 27. Rf6 {[%clk 0:01:49]}  Nc4 {[%clk 0:01:19]} 28. Rxg6+ {[%clk 0:01:38]}  Kh7 {[%clk 0:01:19]} 29. Rxe6 {[%clk 0:01:15]}  Rb6 {[%clk 0:00:51]} 30. Qd3+ {[%clk 0:01:09]}  Kg8 {[%clk 0:00:36]} 31. Qg6+ {[%clk 0:00:55]}  Kh8 {[%clk 0:00:28]} 32. Qh6+ {[%clk 0:00:46]}  Qh7 {[%clk 0:00:25]} 33. Rxb6 {[%clk 0:00:42]}  Nxb6 {[%clk 0:00:21]} 34. Qf6+ {[%clk 0:00:38]}  Kg8 {[%clk 0:00:20]} 35. Qe6+ {[%clk 0:00:35]}  Kh8 {[%clk 0:00:20]} 36. Kg2 {[%clk 0:00:26]}  Qe4+ {[%clk 0:00:18]} 37. Kg3 {[%clk 0:00:11]}  Qe3+ {[%clk 0:00:18]} 38. Kh4 {[%clk 0:00:12]}  Qxc1 {[%clk 0:00:13]} 39. Qf6+ {[%clk 0:00:12]}  Kg8 {[%clk 0:00:12]} 40. Qe6+ {[%clk 0:00:12]}  Kf8 {[%clk 0:00:10]} 41. Qf6+ {[%clk 0:00:13]}  Ke8 {[%clk 0:00:10]} 42. Qe6+ {[%clk 0:00:13]}  Kf8 {[%clk 0:00:09]} 43. Qf6+ {[%clk 0:00:13]}  Ke8 {[%clk 0:00:08]} 44. Qe6+ {[%clk 0:00:13]}  Kd8 {[%clk 0:00:08]} 45. Qxb6+ {[%clk 0:00:13]}  Rc7 {[%clk 0:00:07]} 46. Qb8+ {[%clk 0:00:13]}  Kd7 {[%clk 0:00:07]} 47. e6+ {[%clk 0:00:13]}  Kc6 {[%clk 0:00:07]} 48. Qa8+ {[%clk 0:00:07]}  Kd6 {[%clk 0:00:07]} 49. Qd8+ {[%clk 0:00:07]}  Kc6 {[%clk 0:00:07]} 50. Qa8+ {[%clk 0:00:06]}  Kb6 {[%clk 0:00:05]} 51. Qb8+ {[%clk 0:00:06]}  Kc6 {[%clk 0:00:04]} 52. Qa8+ {[%clk 0:00:06]} 1/2-1/2


[Site "https://www.chess.com"]

[Event "Titled Tuesday Blitz April 18 Late 2023"]
[White "Al-Tarboush, Ward"]
[Black "Marcziter, Dmitrii"]
[WhiteFideId "7601450"]
[BlackFideId "13900765"]
[WhiteElo "2265"]
[BlackElo "2162"]
[Result "1-0"]
[Round "11"]
[TimeControl "180+2"]
[Date "2023.04.18"]
[WhiteClock "0:02:27"]
[BlackClock "0:02:56"]

1. e4 {[%clk 0:03:00]}  c5 {[%clk 0:02:59]} 2. Nf3 {[%clk 0:03:01]}  a6 {[%clk 0:02:59]} 3. c3 {[%clk 0:03:01]}  d5 {[%clk 0:02:59]} 4. exd5 {[%clk 0:03:01]}  Qxd5 {[%clk 0:03:00]} 5. d4 {[%clk 0:03:02]}  Nf6 {[%clk 0:03:00]} 6. Be3 {[%clk 0:03:02]}  cxd4 {[%clk 0:02:59]} 7. cxd4 {[%clk 0:03:02]}  Bg4 {[%clk 0:02:58]} 8. Be2 {[%clk 0:03:01]}  e6 {[%clk 0:02:58]} 9. Nc3 {[%clk 0:03:02]}  Qd6 {[%clk 0:02:58]} 10. O-O {[%clk 0:03:00]}  Nc6 {[%clk 0:02:57]} 11. h3 {[%clk 0:02:51]}  Bh5 {[%clk 0:02:57]} 12. Qd2 {[%clk 0:02:45]}  Nb4 {[%clk 0:02:52]} 13. Bf4 {[%clk 0:02:37]}  Qc6 {[%clk 0:02:53]} 14. Ne5 {[%clk 0:02:36]}  Qd6 {[%clk 0:02:54]} 15. Ng6 {[%clk 0:02:32]}  Qc6 {[%clk 0:02:55]} 16. Nxh8 {[%clk 0:02:30]}  Qd6 {[%clk 0:02:56]} 17. Bxd6 {[%clk 0:02:29]}  Bg6 {[%clk 0:02:56]} 18. Bxf8 {[%clk 0:02:27]} 1-0


[Site "https://www.chess.com"]

[Event "Titled Tuesday Blitz April 18 Late 2023"]
[White "Barrientos, Sergio E"]
[Black "Volkmann, Andre Jordi"]
[WhiteFideId "4401824"]
[BlackFideId "2154463"]
[WhiteElo "2423"]
[BlackElo "1999"]
[Result "1-0"]
[Round "11"]
[TimeControl "180+2"]
[Date "2023.04.18"]
[WhiteClock "0:02:13"]
[BlackClock "0:00:08"]

1. a3 {[%clk 0:02:58]}  d5 {[%clk 0:02:57]} 2. b4 {[%clk 0:02:54]}  e5 {[%clk 0:02:54]} 3. Bb2 {[%clk 0:02:55]}  f6 {[%clk 0:02:52]} 4. e3 {[%clk 0:02:55]}  c5 {[%clk 0:02:52]} 5. bxc5 {[%clk 0:02:54]}  Bxc5 {[%clk 0:02:51]} 6. Nf3 {[%clk 0:02:55]}  Nc6 {[%clk 0:02:48]} 7. d4 {[%clk 0:02:55]}  Bd6 {[%clk 0:02:47]} 8. dxe5 {[%clk 0:02:55]}  Bxe5 {[%clk 0:02:48]} 9. Nxe5 {[%clk 0:02:52]}  Nxe5 {[%clk 0:02:49]} 10. Bxe5 {[%clk 0:02:51]}  fxe5 {[%clk 0:02:48]} 11. Qh5+ {[%clk 0:02:51]}  Kf8 {[%clk 0:02:38]} 12. Qxe5 {[%clk 0:02:51]}  Qf6 {[%clk 0:02:39]} 13. Qxf6+ {[%clk 0:02:51]}  Nxf6 {[%clk 0:02:40]} 14. Bd3 {[%clk 0:02:50]}  Ke7 {[%clk 0:02:36]} 15. Nd2 {[%clk 0:02:51]}  Re8 {[%clk 0:02:32]} 16. f3 {[%clk 0:02:51]}  b6 {[%clk 0:02:21]} 17. Kf2 {[%clk 0:02:52]}  Bb7 {[%clk 0:02:21]} 18. Rhb1 {[%clk 0:02:52]}  Rac8 {[%clk 0:02:18]} 19. a4 {[%clk 0:02:53]}  a6 {[%clk 0:02:16]} 20. Rxb6 {[%clk 0:02:52]}  Rc7 {[%clk 0:02:16]} 21. Rab1 {[%clk 0:02:52]}  Bc8 {[%clk 0:02:13]} 22. Nb3 {[%clk 0:02:53]}  Kf8 {[%clk 0:02:10]} 23. Nd4 {[%clk 0:02:53]}  Kg8 {[%clk 0:02:04]} 24. Bxa6 {[%clk 0:02:53]}  Bxa6 {[%clk 0:02:02]} 25. Rxa6 {[%clk 0:02:54]}  Nd7 {[%clk 0:01:55]} 26. Rc6 {[%clk 0:02:52]}  Ra7 {[%clk 0:01:53]} 27. Rb4 {[%clk 0:02:52]}  Ne5 {[%clk 0:01:53]} 28. Rcb6 {[%clk 0:02:51]}  Nc4 {[%clk 0:01:53]} 29. e4 {[%clk 0:02:51]}  Nxb6 {[%clk 0:01:53]} 30. Rxb6 {[%clk 0:02:51]}  dxe4 {[%clk 0:01:53]} 31. Rb4 {[%clk 0:02:48]}  e3+ {[%clk 0:01:43]} 32. Ke2 {[%clk 0:02:48]}  Rd7 {[%clk 0:01:44]} 33. c3 {[%clk 0:02:47]}  Rc8 {[%clk 0:01:36]} 34. Rb3 {[%clk 0:02:47]}  Ra7 {[%clk 0:01:33]} 35. Ra3 {[%clk 0:02:47]}  Re8 {[%clk 0:01:32]} 36. a5 {[%clk 0:02:46]}  Rb7 {[%clk 0:01:31]} 37. Ra2 {[%clk 0:02:45]}  Rc7 {[%clk 0:01:30]} 38. Kd3 {[%clk 0:02:44]}  e2 {[%clk 0:01:21]} 39. Nxe2 {[%clk 0:02:42]}  Rce7 {[%clk 0:01:19]} 40. Nd4 {[%clk 0:02:42]}  Re3+ {[%clk 0:01:20]} 41. Kc4 {[%clk 0:02:43]}  Rc8+ {[%clk 0:01:19]} 42. Kb4 {[%clk 0:02:43]}  Rexc3 {[%clk 0:01:19]} 43. Rd2 {[%clk 0:02:36]}  R8c4+ {[%clk 0:01:12]} 44. Kb5 {[%clk 0:02:36]}  Rc5+ {[%clk 0:01:11]} 45. Kb6 {[%clk 0:02:36]}  Rd5 {[%clk 0:01:09]} 46. a6 {[%clk 0:02:33]}  Rd6+ {[%clk 0:00:56]} 47. Kb5 {[%clk 0:02:29]}  Ra3 {[%clk 0:00:53]} 48. f4 {[%clk 0:02:19]}  Raxa6 {[%clk 0:00:51]} 49. g3 {[%clk 0:02:18]}  Ra3 {[%clk 0:00:46]} 50. Kc5 {[%clk 0:02:17]}  Rd8 {[%clk 0:00:45]} 51. Nf3 {[%clk 0:02:14]}  Rxd2 {[%clk 0:00:43]} 52. Nxd2 {[%clk 0:02:15]}  Ra2 {[%clk 0:00:43]} 53. Nf3 {[%clk 0:02:15]}  Rf2 {[%clk 0:00:44]} 54. Ng5 {[%clk 0:02:15]}  Rxh2 {[%clk 0:00:44]} 55. Kd5 {[%clk 0:02:16]}  Rg2 {[%clk 0:00:41]} 56. Ne4 {[%clk 0:02:17]}  Kf7 {[%clk 0:00:40]} 57. Kd4 {[%clk 0:02:16]}  h5 {[%clk 0:00:37]} 58. Ke3 {[%clk 0:02:17]}  Ra2 {[%clk 0:00:34]} 59. Kf3 {[%clk 0:02:18]}  Ra3+ {[%clk 0:00:34]} 60. Kg2 {[%clk 0:02:18]}  Kg6 {[%clk 0:00:34]} 61. Kh3 {[%clk 0:02:19]}  Ra4 {[%clk 0:00:31]} 62. Ng5 {[%clk 0:02:19]}  Kf5 {[%clk 0:00:29]} 63. Nf3 {[%clk 0:02:19]}  Ra3 {[%clk 0:00:28]} 64. Nd4+ {[%clk 0:02:19]}  Ke4 {[%clk 0:00:28]} 65. Ne6 {[%clk 0:02:19]}  g6 {[%clk 0:00:27]} 66. Kh4 {[%clk 0:02:19]}  Kf5 {[%clk 0:00:25]} 67. Nd4+ {[%clk 0:02:18]}  Ke4 {[%clk 0:00:25]} 68. Ne6 {[%clk 0:02:18]}  Kf5 {[%clk 0:00:25]} 69. Ng7+ {[%clk 0:02:17]}  Kf6 {[%clk 0:00:24]} 70. Ne8+ {[%clk 0:02:18]}  Ke7 {[%clk 0:00:22]} 71. Nc7 {[%clk 0:02:18]}  Ra2 {[%clk 0:00:20]} 72. Nd5+ {[%clk 0:02:18]}  Ke6 {[%clk 0:00:19]} 73. Ne3 {[%clk 0:02:18]}  Re2 {[%clk 0:00:17]} 74. Nc4 {[%clk 0:02:16]}  Kf6 {[%clk 0:00:15]} 75. Kh3 {[%clk 0:02:15]}  Re4 {[%clk 0:00:14]} 76. Nd2 {[%clk 0:02:14]}  Re3 {[%clk 0:00:13]} 77. Nc4 {[%clk 0:02:14]}  Rd3 {[%clk 0:00:12]} 78. Ne5 {[%clk 0:02:14]}  Ra3 {[%clk 0:00:12]} 79. Kh4 {[%clk 0:02:14]}  Ra1 {[%clk 0:00:11]} 80. Kh3 {[%clk 0:02:14]}  Rh1+ {[%clk 0:00:10]} 81. Kg2 {[%clk 0:02:14]}  Ra1 {[%clk 0:00:11]} 82. Nf3 {[%clk 0:02:15]}  Ra2+ {[%clk 0:00:11]} 83. Kh3 {[%clk 0:02:15]}  Ra1 {[%clk 0:00:10]} 84. Nd4 {[%clk 0:02:15]}  Rh1+ {[%clk 0:00:09]} 85. Kg2 {[%clk 0:02:15]}  Rd1 {[%clk 0:00:10]} 86. Nf3 {[%clk 0:02:15]}  Kf5 {[%clk 0:00:10]} 87. Nh4+ {[%clk 0:02:15]}  Kg4 {[%clk 0:00:10]} 88. Nxg6 {[%clk 0:02:15]}  Rd2+ {[%clk 0:00:10]} 89. Kf1 {[%clk 0:02:16]}  Kxg3 {[%clk 0:00:10]} 90. f5 {[%clk 0:02:16]}  Kf3 {[%clk 0:00:10]} 91. Ke1 {[%clk 0:02:13]}  Rd5 {[%clk 0:00:10]} 92. f6 {[%clk 0:02:13]}  Rf5 {[%clk 0:00:10]} 93. Nh4+ {[%clk 0:02:13]}  Kg4 {[%clk 0:00:07]} 94. Nxf5 {[%clk 0:02:14]}  h4 {[%clk 0:00:07]} 95. Nxh4 {[%clk 0:02:13]}  Kxh4 {[%clk 0:00:08]} 96. f7 {[%clk 0:02:13]} 1-0


[Site "https://www.chess.com"]

[Event "Titled Tuesday Blitz April 18 Late 2023"]
[White "liwadas82"]
[Black "Kubatko, Ivan"]
[BlackFideId "24111473"]
[WhiteElo "2539"]
[BlackElo "2285"]
[Result "0-1"]
[Round "11"]
[TimeControl "180+2"]
[Date "2023.04.18"]
[WhiteClock "0:00:01"]
[BlackClock "0:00:02"]

1. e4 {[%clk 0:03:00]}  d5 {[%clk 0:02:59]} 2. exd5 {[%clk 0:03:00]}  Qxd5 {[%clk 0:03:00]} 3. Nc3 {[%clk 0:03:00]}  Qa5 {[%clk 0:03:00]} 4. d4 {[%clk 0:03:00]}  Nf6 {[%clk 0:03:01]} 5. Nf3 {[%clk 0:03:00]}  Bg4 {[%clk 0:03:01]} 6. h3 {[%clk 0:02:59]}  Bh5 {[%clk 0:03:01]} 7. g4 {[%clk 0:02:57]}  Bg6 {[%clk 0:03:01]} 8. b4 {[%clk 0:02:57]}  Qb6 {[%clk 0:02:57]} 9. Bg2 {[%clk 0:02:44]}  e6 {[%clk 0:02:52]} 10. O-O {[%clk 0:02:37]}  Bxb4 {[%clk 0:02:48]} 11. Rb1 {[%clk 0:02:35]}  Qa5 {[%clk 0:02:48]} 12. Ne2 {[%clk 0:02:21]}  Be4 {[%clk 0:02:42]} 13. Ng3 {[%clk 0:02:05]}  Bd5 {[%clk 0:02:31]} 14. a3 {[%clk 0:01:41]}  Bd6 {[%clk 0:02:05]} 15. Bd2 {[%clk 0:01:16]}  Qxa3 {[%clk 0:02:05]} 16. Ra1 {[%clk 0:01:08]}  Qb2 {[%clk 0:02:02]} 17. Rb1 {[%clk 0:01:08]}  Qa2 {[%clk 0:02:00]} 18. Ra1 {[%clk 0:01:06]}  Qc4 {[%clk 0:01:59]} 19. g5 {[%clk 0:00:41]}  Nfd7 {[%clk 0:01:49]} 20. Nh5 {[%clk 0:00:36]}  O-O {[%clk 0:01:34]} 21. Nf4 {[%clk 0:00:35]}  Nc6 {[%clk 0:00:56]} 22. Nxd5 {[%clk 0:00:34]}  exd5 {[%clk 0:00:56]} 23. c3 {[%clk 0:00:33]}  Nb6 {[%clk 0:00:48]} 24. Nh4 {[%clk 0:00:31]}  Qd3 {[%clk 0:00:41]} 25. Re1 {[%clk 0:00:20]}  Nc4 {[%clk 0:00:41]} 26. Be3 {[%clk 0:00:15]}  Qxd1 {[%clk 0:00:36]} 27. Raxd1 {[%clk 0:00:16]}  Ne7 {[%clk 0:00:34]} 28. Bf4 {[%clk 0:00:14]}  Bxf4 {[%clk 0:00:31]} 29. Rxe7 {[%clk 0:00:13]}  Bxg5 {[%clk 0:00:30]} 30. Nf5 {[%clk 0:00:13]}  Bxe7 {[%clk 0:00:27]} 31. Nxe7+ {[%clk 0:00:14]}  Kh8 {[%clk 0:00:28]} 32. Nxd5 {[%clk 0:00:14]}  c6 {[%clk 0:00:25]} 33. Nf4 {[%clk 0:00:12]}  Rfe8 {[%clk 0:00:22]} 34. Rb1 {[%clk 0:00:12]}  Rab8 {[%clk 0:00:22]} 35. Nd3 {[%clk 0:00:11]}  Red8 {[%clk 0:00:17]} 36. Nc5 {[%clk 0:00:11]}  b6 {[%clk 0:00:16]} 37. Na6 {[%clk 0:00:11]}  Rbc8 {[%clk 0:00:16]} 38. Nb4 {[%clk 0:00:11]}  c5 {[%clk 0:00:15]} 39. Nc6 {[%clk 0:00:10]}  Rxc6 {[%clk 0:00:12]} 40. Bxc6 {[%clk 0:00:09]}  cxd4 {[%clk 0:00:13]} 41. cxd4 {[%clk 0:00:09]}  Rxd4 {[%clk 0:00:13]} 42. Re1 {[%clk 0:00:06]}  g6 {[%clk 0:00:13]} 43. Re7 {[%clk 0:00:05]}  a5 {[%clk 0:00:06]} 44. Rxf7 {[%clk 0:00:05]}  Nd6 {[%clk 0:00:05]} 45. Ra7 {[%clk 0:00:04]}  Nf5 {[%clk 0:00:03]} 46. Rb7 {[%clk 0:00:02]}  Rb4 {[%clk 0:00:03]} 47. Bd5 {[%clk 0:00:01]}  h5 {[%clk 0:00:02]} 0-1


[Site "https://www.chess.com"]

[Event "Titled Tuesday Blitz April 18 Late 2023"]
[White "Bruedigam, Martin"]
[Black "Mazurkiewicz, Michal"]
[WhiteFideId "24608033"]
[BlackFideId "1124943"]
[WhiteElo "2331"]
[BlackElo "2054"]
[Result "1-0"]
[Round "11"]
[TimeControl "180+2"]
[Date "2023.04.18"]
[WhiteClock "0:01:09"]
[BlackClock "0:01:22"]

1. d4 {[%clk 0:03:00]}  Nf6 {[%clk 0:02:59]} 2. c4 {[%clk 0:03:01]}  e5 {[%clk 0:02:59]} 3. dxe5 {[%clk 0:03:00]}  Ng4 {[%clk 0:03:00]} 4. Bf4 {[%clk 0:02:58]}  g5 {[%clk 0:03:00]} 5. Bg3 {[%clk 0:02:57]}  Bg7 {[%clk 0:03:00]} 6. Nf3 {[%clk 0:02:54]}  Nc6 {[%clk 0:03:00]} 7. Nc3 {[%clk 0:02:44]}  Ngxe5 {[%clk 0:02:59]} 8. Nxe5 {[%clk 0:02:38]}  Nxe5 {[%clk 0:03:00]} 9. e3 {[%clk 0:02:38]}  d5 {[%clk 0:02:58]} 10. cxd5 {[%clk 0:02:35]}  O-O {[%clk 0:02:51]} 11. h4 {[%clk 0:02:24]}  g4 {[%clk 0:02:47]} 12. Bd3 {[%clk 0:02:13]}  c6 {[%clk 0:02:42]} 13. Be4 {[%clk 0:02:07]}  f5 {[%clk 0:02:38]} 14. Bc2 {[%clk 0:02:06]}  Qb6 {[%clk 0:02:37]} 15. Bb3 {[%clk 0:02:03]}  Kh8 {[%clk 0:02:27]} 16. O-O {[%clk 0:01:59]}  a5 {[%clk 0:02:18]} 17. Rc1 {[%clk 0:01:53]}  Qb4 {[%clk 0:02:14]} 18. a3 {[%clk 0:01:40]}  Qb6 {[%clk 0:02:12]} 19. dxc6 {[%clk 0:01:32]}  bxc6 {[%clk 0:02:11]} 20. Na4 {[%clk 0:01:31]}  Qb5 {[%clk 0:01:45]} 21. Rc5 {[%clk 0:01:10]}  Qd3 {[%clk 0:01:22]} 22. Bxe5 {[%clk 0:01:09]} 1-0


[Site "https://www.chess.com"]

[Event "Titled Tuesday Blitz April 18 Late 2023"]
[White "angelgab3"]
[Black "Gonzalez Zamora, Juan Carlos"]
[BlackFideId "3507548"]
[WhiteElo "2512"]
[BlackElo "2535"]
[Result "1-0"]
[Round "11"]
[TimeControl "180+2"]
[Date "2023.04.18"]
[WhiteClock "0:00:11"]
[BlackClock "0:00:02"]

1. e4 {[%clk 0:03:00]}  d6 {[%clk 0:02:57]} 2. d4 {[%clk 0:03:00]}  Nf6 {[%clk 0:02:58]} 3. Nc3 {[%clk 0:03:01]}  g6 {[%clk 0:02:58]} 4. f4 {[%clk 0:03:02]}  Bg7 {[%clk 0:02:58]} 5. Nf3 {[%clk 0:03:02]}  O-O {[%clk 0:02:59]} 6. Bd3 {[%clk 0:03:03]}  Bg4 {[%clk 0:02:57]} 7. e5 {[%clk 0:02:37]}  dxe5 {[%clk 0:02:53]} 8. fxe5 {[%clk 0:02:38]}  Nd5 {[%clk 0:02:52]} 9. Ne4 {[%clk 0:02:36]}  Nb4 {[%clk 0:02:45]} 10. Bc4 {[%clk 0:02:26]}  Bxf3 {[%clk 0:02:38]} 11. gxf3 {[%clk 0:02:27]}  c6 {[%clk 0:02:29]} 12. c3 {[%clk 0:02:25]}  Nd5 {[%clk 0:02:29]} 13. h4 {[%clk 0:02:22]}  h5 {[%clk 0:01:57]} 14. Rg1 {[%clk 0:02:07]}  a5 {[%clk 0:01:40]} 15. Bd3 {[%clk 0:02:04]}  Na6 {[%clk 0:01:32]} 16. f4 {[%clk 0:01:58]}  Qd7 {[%clk 0:01:28]} 17. Qf3 {[%clk 0:01:56]}  Rad8 {[%clk 0:01:24]} 18. f5 {[%clk 0:01:53]}  Ndb4 {[%clk 0:01:02]} 19. Bb1 {[%clk 0:01:45]}  c5 {[%clk 0:00:53]} 20. Ng3 {[%clk 0:01:23]}  Nc6 {[%clk 0:00:46]} 21. Nxh5 {[%clk 0:01:22]}  Nxd4 {[%clk 0:00:45]} 22. Qg4 {[%clk 0:00:54]}  Bxe5 {[%clk 0:00:19]} 23. cxd4 {[%clk 0:00:52]}  Bxd4 {[%clk 0:00:19]} 24. fxg6 {[%clk 0:00:53]}  f5 {[%clk 0:00:12]} 25. Qe2 {[%clk 0:00:24]}  Bxg1 {[%clk 0:00:10]} 26. a3 {[%clk 0:00:25]}  Qd4 {[%clk 0:00:07]} 27. Ba2+ {[%clk 0:00:25]}  Rd5 {[%clk 0:00:06]} 28. Nf4 {[%clk 0:00:22]}  Nc7 {[%clk 0:00:05]} 29. Bd2 {[%clk 0:00:13]}  e6 {[%clk 0:00:02]} 30. Nxe6 {[%clk 0:00:11]} 1-0


[Site "https://www.chess.com"]

[Event "Titled Tuesday Blitz April 18 Late 2023"]
[White "Marczuk, Dominik"]
[Black "Rios Escobar, Adan"]
[WhiteFideId "1111264"]
[BlackFideId "3403645"]
[WhiteElo "2174"]
[BlackElo "2488"]
[Result "1-0"]
[Round "11"]
[TimeControl "180+2"]
[Date "2023.04.18"]
[WhiteClock "0:00:34"]
[BlackClock "0:00:06"]

1. e4 {[%clk 0:03:00]}  c5 {[%clk 0:02:56]} 2. Nf3 {[%clk 0:03:00]}  d6 {[%clk 0:02:57]} 3. d4 {[%clk 0:03:00]}  cxd4 {[%clk 0:02:58]} 4. Nxd4 {[%clk 0:02:59]}  Nf6 {[%clk 0:02:58]} 5. Nc3 {[%clk 0:02:59]}  a6 {[%clk 0:02:59]} 6. f3 {[%clk 0:03:00]}  e5 {[%clk 0:02:47]} 7. Nb3 {[%clk 0:03:00]}  Be7 {[%clk 0:02:43]} 8. Be3 {[%clk 0:03:00]}  Be6 {[%clk 0:02:43]} 9. Qd2 {[%clk 0:03:01]}  h5 {[%clk 0:02:42]} 10. Nd5 {[%clk 0:03:01]}  Nxd5 {[%clk 0:02:41]} 11. exd5 {[%clk 0:03:02]}  Bf5 {[%clk 0:02:42]} 12. Be2 {[%clk 0:03:01]}  a5 {[%clk 0:02:34]} 13. a4 {[%clk 0:02:58]}  Nd7 {[%clk 0:02:30]} 14. O-O {[%clk 0:02:58]}  O-O {[%clk 0:02:25]} 15. c4 {[%clk 0:02:38]}  Bg6 {[%clk 0:02:17]} 16. Rad1 {[%clk 0:02:21]}  f5 {[%clk 0:02:16]} 17. c5 {[%clk 0:02:15]}  f4 {[%clk 0:01:29]} 18. Bf2 {[%clk 0:02:09]}  Rc8 {[%clk 0:01:22]} 19. c6 {[%clk 0:01:50]}  bxc6 {[%clk 0:01:16]} 20. dxc6 {[%clk 0:01:51]}  Nf6 {[%clk 0:00:54]} 21. Nxa5 {[%clk 0:01:41]}  d5 {[%clk 0:00:42]} 22. b4 {[%clk 0:01:24]}  d4 {[%clk 0:00:25]} 23. b5 {[%clk 0:01:19]}  d3 {[%clk 0:00:23]} 24. Nb7 {[%clk 0:01:13]}  dxe2 {[%clk 0:00:19]} 25. Nxd8 {[%clk 0:01:12]}  exf1=Q+ {[%clk 0:00:19]} 26. Rxf1 {[%clk 0:01:10]}  Rfxd8 {[%clk 0:00:19]} 27. Qc3 {[%clk 0:01:06]}  e4 {[%clk 0:00:13]} 28. fxe4 {[%clk 0:01:00]}  Nxe4 {[%clk 0:00:12]} 29. Qc4+ {[%clk 0:01:00]}  Kh8 {[%clk 0:00:12]} 30. Bb6 {[%clk 0:00:42]}  Nd2 {[%clk 0:00:10]} 31. Qe6 {[%clk 0:00:39]}  Nxf1 {[%clk 0:00:09]} 32. Bxd8 {[%clk 0:00:39]}  Bc5+ {[%clk 0:00:07]} 33. Kxf1 {[%clk 0:00:37]}  Bd3+ {[%clk 0:00:07]} 34. Ke1 {[%clk 0:00:37]}  Rxd8 {[%clk 0:00:07]} 35. c7 {[%clk 0:00:34]}  Bb4+ {[%clk 0:00:05]} 36. Kf2 {[%clk 0:00:34]}  Bc5+ {[%clk 0:00:06]} 37. Kf3 {[%clk 0:00:34]} 1-0


[Site "https://www.chess.com"]

[Event "Titled Tuesday Blitz April 18 Late 2023"]
[White "Pein, Jonathan"]
[Black "D`Arruda, Ricardo D."]
[WhiteFideId "417092"]
[BlackFideId "100692"]
[WhiteElo "2151"]
[BlackElo "2466"]
[Result "1-0"]
[Round "11"]
[TimeControl "180+2"]
[Date "2023.04.18"]
[WhiteClock "0:01:28"]
[BlackClock "0:00:20"]

1. Nf3 {[%clk 0:02:59]}  d5 {[%clk 0:02:59]} 2. e3 {[%clk 0:02:58]}  Nf6 {[%clk 0:02:56]} 3. c4 {[%clk 0:02:58]}  c5 {[%clk 0:02:54]} 4. b3 {[%clk 0:02:58]}  Nc6 {[%clk 0:02:53]} 5. cxd5 {[%clk 0:02:55]}  Nxd5 {[%clk 0:02:52]} 6. Bb2 {[%clk 0:02:56]}  f6 {[%clk 0:02:48]} 7. d4 {[%clk 0:02:55]}  e6 {[%clk 0:02:42]} 8. Bb5 {[%clk 0:02:53]}  Qa5+ {[%clk 0:02:39]} 9. Nc3 {[%clk 0:02:51]}  Nxc3 {[%clk 0:02:39]} 10. Bxc6+ {[%clk 0:02:51]}  bxc6 {[%clk 0:02:40]} 11. Qd2 {[%clk 0:02:52]}  cxd4 {[%clk 0:02:39]} 12. Nxd4 {[%clk 0:02:52]}  Qd5 {[%clk 0:02:13]} 13. Qxc3 {[%clk 0:02:45]}  Qxg2 {[%clk 0:02:13]} 14. O-O-O {[%clk 0:02:32]}  Bd7 {[%clk 0:02:02]} 15. Rhg1 {[%clk 0:02:30]}  Qd5 {[%clk 0:02:00]} 16. Kb1 {[%clk 0:02:21]}  Kf7 {[%clk 0:01:40]} 17. Ka1 {[%clk 0:02:10]}  c5 {[%clk 0:01:24]} 18. Nf3 {[%clk 0:01:58]}  Qc6 {[%clk 0:01:20]} 19. e4 {[%clk 0:01:55]}  Be7 {[%clk 0:01:09]} 20. Ng5+ {[%clk 0:01:53]}  Ke8 {[%clk 0:01:07]} 21. Nf3 {[%clk 0:01:47]}  Rg8 {[%clk 0:01:03]} 22. Nd2 {[%clk 0:01:46]}  Kf7 {[%clk 0:00:59]} 23. Nc4 {[%clk 0:01:45]}  Rgd8 {[%clk 0:00:55]} 24. Qf3 {[%clk 0:01:43]}  Kf8 {[%clk 0:00:22]} 25. Rxg7 {[%clk 0:01:28]}  Kxg7 {[%clk 0:00:21]} 26. Rg1+ {[%clk 0:01:28]}  Kf7 {[%clk 0:00:20]} 27. Ne5+ {[%clk 0:01:28]} 1-0


[Site "https://www.chess.com"]

[Event "Titled Tuesday Blitz April 18 Late 2023"]
[White "Hoffmann, Asa"]
[Black "Storey, Charles H"]
[WhiteFideId "2001470"]
[BlackFideId "406686"]
[WhiteElo "2117"]
[BlackElo "2196"]
[Result "0-1"]
[Round "11"]
[TimeControl "180+2"]
[Date "2023.04.18"]
[WhiteClock "0:01:43"]
[BlackClock "0:01:45"]

1. d4 {[%clk 0:02:56]}  g6 {[%clk 0:03:00]} 2. e4 {[%clk 0:02:55]}  Bg7 {[%clk 0:03:00]} 3. Be3 {[%clk 0:02:55]}  c5 {[%clk 0:03:01]} 4. c3 {[%clk 0:02:53]}  cxd4 {[%clk 0:03:01]} 5. Bxd4 {[%clk 0:02:53]}  Nf6 {[%clk 0:02:59]} 6. e5 {[%clk 0:02:51]}  Nh5 {[%clk 0:02:58]} 7. Be2 {[%clk 0:02:41]}  Nf4 {[%clk 0:02:58]} 8. Bf3 {[%clk 0:02:40]}  Nc6 {[%clk 0:02:57]} 9. g3 {[%clk 0:02:37]}  Ne6 {[%clk 0:02:56]} 10. Bxc6 {[%clk 0:02:26]}  bxc6 {[%clk 0:02:55]} 11. f4 {[%clk 0:02:24]}  c5 {[%clk 0:02:51]} 12. Be3 {[%clk 0:02:23]}  Bb7 {[%clk 0:02:51]} 13. Nf3 {[%clk 0:02:22]}  Qb6 {[%clk 0:02:51]} 14. b3 {[%clk 0:02:11]}  Qc6 {[%clk 0:02:38]} 15. O-O {[%clk 0:02:10]}  h5 {[%clk 0:02:35]} 16. h4 {[%clk 0:02:07]}  d6 {[%clk 0:02:24]} 17. exd6 {[%clk 0:02:03]}  exd6 {[%clk 0:02:24]} 18. Nbd2 {[%clk 0:02:03]}  O-O {[%clk 0:02:18]} 19. Qe2 {[%clk 0:02:02]}  Rfe8 {[%clk 0:02:16]} 20. Qf2 {[%clk 0:02:01]}  Bxc3 {[%clk 0:02:08]} 21. Rac1 {[%clk 0:02:00]}  Bg7 {[%clk 0:02:04]} 22. Kh2 {[%clk 0:02:00]}  a5 {[%clk 0:01:58]} 23. Rg1 {[%clk 0:01:59]}  Rad8 {[%clk 0:01:53]} 24. Nc4 {[%clk 0:01:57]}  Qxf3 {[%clk 0:01:50]} 25. Qxf3 {[%clk 0:01:54]}  Bxf3 {[%clk 0:01:51]} 26. Nxa5 {[%clk 0:01:49]}  Ra8 {[%clk 0:01:46]} 27. Nc4 {[%clk 0:01:44]}  Rxa2+ {[%clk 0:01:46]} 28. Kh3 {[%clk 0:01:43]}  Bg4# {[%clk 0:01:45]} 0-1


[Site "https://www.chess.com"]